fUST/lending_fUST_20250424
["ID","MTS","AMOUNT","RATE_DAILY","PERIOD"]
[358808963,1745455915949,-153.0,0.00030569,30]
[358808964,1745455915996,-361.4231003,0.00030822,30]
[358808965,1745455916042,-361.4231003,0.00030822,30]
[358808966,1745455916086,-200.0,0.00031,34]
[358808967,1745455916131,-420.82143104,0.00031,120]
[358808968,1745455916176,-160.0,0.00031,120]
[358808969,1745455916223,-157.2221142,0.00031472,30]
[358808970,1745455916272,-305.3525481,0.00031472,30]
[358808971,1745455916320,-157.2221142,0.00031472,30]
[358808972,1745455916369,-157.2221142,0.00031472,30]
[358808973,1745455916418,-157.2221142,0.00031801,30]
[358808974,1745455916466,-157.2221142,0.00031801,30]
[358808975,1745455916514,-157.2221142,0.00031801,30]
[358808976,1745455916562,-157.2221142,0.00031801,30]
[358808977,1745455916607,-157.2221142,0.00031801,30]
[358808978,1745455916651,-157.2221142,0.00031801,30]
[358808979,1745455916695,-157.2221142,0.00031801,30]
[358808980,1745455916738,-157.2221142,0.00031801,30]
[358808981,1745455916779,-157.2221142,0.00031801,30]
[358808982,1745455916822,-157.2221142,0.00031801,30]
[358808983,1745455916867,-157.2221142,0.00031801,30]
[358808984,1745455916911,-157.2221142,0.00031801,30]
[358808985,1745455916955,-157.2221142,0.00031801,30]
[358808986,1745455916998,-157.2221142,0.00031801,30]
[358808987,1745455917041,-157.2221142,0.00031801,30]
[358808988,1745455917081,-157.2221142,0.00031801,30]
[358808989,1745455917121,-157.2221142,0.00031801,30]
[358808990,1745455917163,-157.2221142,0.00031801,30]
[358808991,1745455917206,-300.0,0.00032,120]
[358808992,1745455917250,-1457.78126322,0.00032,30]
[358808993,1745455917293,-200.0,0.00032,37]
[358808994,1745455917337,-500.0,0.00032,60]
[358808995,1745455917382,-839.95942076,0.00032,30]
[358808996,1745455917432,-312.97391606,0.00032,30]
[358808997,1745455917485,-157.2221142,0.00032623,30]
[358808998,1745455917535,-157.2221142,0.00032623,30]
[358808999,1745455917583,-157.2221142,0.00032623,30]
[358809000,1745455917628,-157.2221142,0.00032623,30]
[358809001,1745455917681,-157.2221142,0.00032623,30]
[358809002,1745455917724,-157.2221142,0.00032623,30]
[358809003,1745455917766,-157.2221142,0.00032623,30]
[358809004,1745455917808,-157.2221142,0.00032623,30]
[358809005,1745455917851,-157.2221142,0.00032623,30]
[358809006,1745455917896,-157.2221142,0.00032623,30]
[358809007,1745455917938,-157.2221142,0.00032623,30]
[358809008,1745455917980,-157.2221142,0.00032623,30]
[358809009,1745455918024,-157.2221142,0.00032623,30]
[358809010,1745455918067,-157.2221142,0.00032623,30]
[358809011,1745455918111,-157.2221142,0.00032623,30]
[358809012,1745455918152,-157.2221142,0.00032623,30]
[358809013,1745455918193,-157.2221142,0.00032623,30]
[358809014,1745455918234,-157.2221142,0.00032623,30]
[358809015,1745455918277,-157.2221142,0.00032623,30]
[358809016,1745455918319,-614.27723066,0.00032877,60]
[358809017,1745455918362,-6430.32,0.000329,30]
[358809018,1745455918404,-102968.32,0.000329,30]
[358809019,1745455918448,-200.0,0.00033,40]
[358809020,1745455918494,-839.95942076,0.00033,30]
[358809021,1745455918537,-153.0,0.00033719,30]
[358809022,1745455918578,-153.0,0.00033719,30]
[358809023,1745455918621,-153.0,0.00033719,30]
[358809024,1745455918662,-300.0,0.00034,120]
[358809025,1745455918716,-351.69,0.00034,43]
[358809026,1745455918760,-6430.32,0.000341,30]
[358809027,1745455918803,-102968.32,0.000341,30]
[358809028,1745455918851,-153.0,0.00034267,30]
[358809029,1745455918896,-153.0,0.00034267,30]
[358809030,1745455918939,-351.2126582,0.00034267,30]
[358809031,1745455918981,-306.0,0.00034267,30]
[358809032,1745455919025,-153.0,0.00034267,30]
[358809033,1745455919065,-153.0,0.00034267,30]
[358809034,1745455919105,-153.0,0.00034267,30]
[358809035,1745455919148,-361.4231003,0.00034658,30]
[358809036,1745455919188,-566.5345072,0.0003472,30]
[358809037,1745455919227,-614.9043002,0.0003472,30]
[358809038,1745455919269,-566.5345072,0.0003472,30]
[358809039,1745455919311,-566.5345072,0.0003472,30]
[358809040,1745455919354,-566.5345072,0.0003472,30]
[358809041,1745455919396,-566.5345072,0.0003472,30]
[358809042,1745455919440,-566.5345072,0.0003472,30]
[358809043,1745455919485,-566.5345072,0.0003472,30]
[358809044,1745455919532,-566.5345072,0.0003472,30]
[358809045,1745455919944,-566.5345072,0.0003472,30]
[358809046,1745455919990,-566.5345072,0.0003472,30]
[358809047,1745455920032,-566.5345072,0.0003472,30]
[358809048,1745455920078,-566.5345072,0.0003472,30]
[358809049,1745455920126,-2688.99,0.000348,60]
[358809050,1745455920175,-758.55818678,0.00035,120]
[358809051,1745455920224,-6430.32,0.00035,30]
[358809052,1745455920268,-102968.32,0.00035,30]
[358809053,1745455920312,-2600.0,0.00035,60]
[358809054,1745455920359,-397.58,0.00035,30]
[358809055,1745455920404,-566.5345072,0.00035049,30]
[358809056,1745455920449,-566.5345072,0.00035049,30]
[358809057,1745455920498,-566.5345072,0.00035049,30]
[358809058,1745455920543,-566.5345072,0.00035049,30]
[358809059,1745455920588,-566.5345072,0.00035049,30]
[358809060,1745455920632,-566.5345072,0.00035049,30]
[358809061,1745455920677,-566.5345072,0.00035049,30]
[358809062,1745455920721,-566.5345072,0.00035049,30]
[358809063,1745455920763,-566.5345072,0.00035049,30]
[358809064,1745455920810,-566.5345072,0.00035871,30]
[358809065,1745455920854,-566.5345072,0.00035871,30]
[358809066,1745455920897,-566.5345072,0.00035871,30]
[358809067,1745455920941,-566.5345072,0.00035871,30]
[358809068,1745455920983,-566.5345072,0.00035871,30]
[358809069,1745455921026,-566.5345072,0.00035871,30]
[358809070,1745455921067,-566.5345072,0.00035871,30]
[358809071,1745455921107,-566.5345072,0.00035871,30]
[358809072,1745455921148,-566.5345072,0.00035871,30]
[358809073,1745455921192,-566.5345072,0.00035871,30]
[358809074,1745455921235,-566.5345072,0.00035871,30]
[358809075,1745455921297,-566.5345072,0.00035871,30]
[358809077,1745455921345,-566.5345072,0.00035871,30]
[358809079,1745455921391,-566.5345072,0.00035871,30]
[358809080,1745455921438,-566.5345072,0.00035871,30]
[358809081,1745455921487,-566.5345072,0.00035871,30]
[358809082,1745455921535,-566.5345072,0.00035911,30]
[358809083,1745455921583,-419.5635283,0.00035911,30]
[358809084,1745455921630,-566.5345072,0.00035911,30]
[358809085,1745455921675,-566.5345072,0.00035911,30]
[358809086,1745455921721,-566.5345072,0.00035911,30]
[358809087,1745455921766,-566.5345072,0.00035911,30]
[358809088,1745455921812,-566.5345072,0.00035911,30]
[358809089,1745455921860,-566.5345072,0.00035911,30]
[358809090,1745455921908,-566.3756473,0.00035911,30]
[358809091,1745455921952,-566.5345072,0.00035911,30]
[358809092,1745455922001,-566.5345072,0.00035911,30]
[358809093,1745455922046,-566.5345072,0.00035911,30]
[358809094,1745455922091,-153.0,0.00035994,30]
[358809095,1745455922139,-6430.32,0.00036,30]
[358809096,1745455922188,-102968.32,0.00036,30]
[358809097,1745455922235,-1039.88457411,0.00036,30]
[358809098,1745455922278,-300.0,0.00036,120]
[358809099,1745455922320,-6296.04490669,0.00036,120]
[358809100,1745455922364,-153.0,0.00036487,30]
[358809101,1745455922407,-764.38427629,0.000365,120]
[358809102,1745455922454,-1806.24550454,0.00036717,56]
[358809103,1745455922505,-153.0,0.00036816,30]
[358809104,1745455922550,-153.0,0.00036816,30]
[358809105,1745455922596,-153.0,0.00036816,30]
[358809106,1745455922640,-153.0,0.00036816,30]
[358809107,1745455922684,-153.0,0.00036816,30]
[358809108,1745455922726,-153.0,0.00036816,30]
[358809109,1745455922766,-153.0,0.00036816,30]
[358809110,1745455922808,-153.0,0.00036816,30]
[358809111,1745455922847,-153.0,0.00036816,30]
[358809112,1745455922886,-153.0,0.00036816,30]
[358809113,1745455922925,-153.0,0.00036816,30]
[358809114,1745455922961,-153.0,0.00036816,30]
[358809115,1745455922997,-153.0,0.00036816,30]
[358809116,1745455923034,-306.0,0.00036816,30]
[358809117,1745455923073,-153.0,0.00036816,30]
[358809118,1745455923113,-153.0,0.00036816,30]
[358809119,1745455923156,-153.0,0.00036816,30]
[358809120,1745455923198,-153.0,0.00036816,30]
[358809121,1745455923243,-153.0,0.00036816,30]
[358809122,1745455923293,-153.0,0.00036816,30]
[358809123,1745455923338,-350.8216307,0.00036816,30]
[358809124,1745455923382,-8000.0,0.000369,120]
[358809125,1745455923432,-102968.32,0.00037,30]
[358809126,1745455923480,-6430.32,0.00037,30]
[358809127,1745455923529,-200.0,0.000373,120]
[358809128,1745455923576,-200.0,0.000373,120]
[358809129,1745455923621,-3000.0,0.000375,40]
[358809130,1745455923666,-451.9454369,0.00037515,30]
[358809131,1745455923710,-153.0,0.00037515,30]
[358809132,1745455923752,-153.0,0.00037515,30]
[358809133,1745455923796,-153.0,0.00037515,30]
[358809134,1745455923840,-153.0,0.00037515,30]
[358809135,1745455923887,-306.0,0.00037515,30]
[358809136,1745455923938,-153.0,0.00037515,30]
[358809137,1745455923984,-153.0,0.00037515,30]
[358809138,1745455924180,-153.0,0.00037554,30]
[358809139,1745455924230,-153.0,0.00037554,30]
[358809140,1745455924277,-153.0,0.00037554,30]
[358809141,1745455924323,-153.0,0.00037554,30]
[358809142,1745455924368,-153.0,0.00037554,30]
[358809143,1745455924414,-153.0,0.00037554,30]
[358809144,1745455924461,-153.0,0.00037554,30]
[358809145,1745455924510,-153.0,0.00037554,30]
[358809146,1745455924558,-153.0,0.00037638,30]
[358809147,1745455924605,-153.0,0.00037638,30]
[358809148,1745455924650,-153.0,0.00037638,30]
[358809149,1745455924695,-153.0,0.00037638,30]
[358809150,1745455924738,-153.0,0.00037638,30]
[358809151,1745455924780,-153.0,0.00037638,30]
[358809152,1745455924821,-153.0,0.00037638,30]
[358809153,1745455924861,-153.0,0.00037638,30]
[358809154,1745455924903,-153.0,0.00037638,30]
[358809155,1745455924945,-1333.0,0.00037753,120]
[358809156,1745455924989,-300.0,0.00038,120]
[358809157,1745455925031,-700.0,0.00038356,120]
[358809158,1745455925073,-700.0,0.00038356,120]
[358809159,1745455925133,-804.5439573,0.00038356,120]
[358809160,1745455925178,-356.4336244,0.00038376,30]
[358809161,1745455925222,-153.0,0.00038376,30]
[358809162,1745455925267,-153.0,0.00038376,30]
[358809163,1745455925313,-153.0,0.00038376,30]
[358809164,1745455925360,-153.0,0.00038376,30]
[358809165,1745455925407,-153.0,0.00038376,30]
[358809166,1745455925454,-153.0,0.00038376,30]
[358809167,1745455925502,-153.0,0.00038376,30]
[358809168,1745455925549,-153.0,0.00038376,30]
[358809169,1745455925593,-153.0,0.00038376,30]
[358809170,1745455925637,-306.0,0.00038376,30]
[358809171,1745455925680,-153.0,0.0003846,30]
[358809172,1745455925722,-153.0,0.0003846,30]
[358809173,1745455925761,-153.0,0.0003846,30]
[358809174,1745455925801,-153.0,0.0003846,30]
[358809175,1745455925840,-153.0,0.0003846,30]
[358809176,1745455925879,-153.0,0.0003846,30]
[358809177,1745455925917,-153.0,0.0003846,30]
[358809178,1745455925956,-153.0,0.0003846,30]
[358809179,1745455925994,-361.057997,0.00038493,30]
[358809180,1745455926034,-345.64752,0.000389,120]
[358809181,1745455926073,-200.0,0.000389,120]
[358809182,1745455926112,-1471.82845868,0.00039,120]
[358809183,1745455926150,-197.88984032,0.00039,120]
[358809184,1745455926194,-18000.0,0.00039,120]
[358809185,1745455926232,-20311.76307155,0.00039,120]
[358809186,1745455926273,-205.0,0.0003906,30]
[358809187,1745455926314,-200.0,0.000394,120]
[358809188,1745455926356,-200.0,0.000394,120]
[358809189,1745455926397,-361.4231003,0.00039452,30]
[358809190,1745455926441,-361.4231003,0.00039452,30]
[358809191,1745455926492,-361.4231003,0.00039452,30]
[358809192,1745455926548,-19798.14248889,0.00039799,72]
[358809193,1745455926593,-200.0,0.000398,60]
[358809194,1745455926638,-267.88303478,0.000398,60]
[358809195,1745455926682,-866.47794049,0.000398,120]
[358809196,1745455926726,-193.0291677,0.000399,120]
[358809197,1745455926767,-156.34221106,0.00039999,31]
[358809198,1745455926808,-461.91358764,0.00039999,31]
[358809199,1745455926847,-500.70789528,0.00039999,31]
[358809200,1745455926887,-500.0,0.00039999,31]
[358809201,1745455926930,-473.75329228,0.00039999,31]
[358809202,1745455926972,-470.59623871,0.00039999,31]
[358809203,1745455927015,-240.48514432,0.00039999,31]
[358809204,1745455927056,-500.0,0.00039999,31]
[358809205,1745455927101,-500.0,0.00039999,31]
[358809206,1745455927144,-500.0,0.00039999,31]
[358809207,1745455927185,-500.0,0.00039999,31]
[358809208,1745455927227,-500.0,0.00039999,31]
[358809209,1745455927270,-500.0,0.00039999,31]
[358809210,1745455927312,-567.18298237,0.00039999,31]
[358809211,1745455927357,-500.0,0.00039999,31]
[358809212,1745455927401,-500.0,0.00039999,31]
[358809213,1745455927448,-602.28580399,0.00039999,31]
[358809214,1745455927497,-500.0,0.00039999,31]
[358809215,1745455927543,-500.0,0.00039999,31]
[358809216,1745455927589,-500.0,0.00039999,31]
[358809217,1745455927634,-528.42870599,0.00039999,31]
[358809218,1745455927679,-528.42870599,0.00039999,31]
[358809219,1745455927726,-528.42870599,0.00039999,31]
[358809220,1745455927767,-528.42870599,0.00039999,31]
[358809221,1745455927809,-528.42870599,0.00039999,31]
[358809222,1745455927850,-528.42870599,0.00039999,31]
[358809223,1745455927894,-650.0,0.00039999,31]
[358809224,1745455927938,-358.44234675,0.00039999,31]
[358809225,1745455927985,-1002.07390669,0.0004,120]
[358809226,1745455928027,-102968.32,0.0004,30]
[358809227,1745455928067,-6430.32,0.0004,30]
[358809228,1745455928107,-32829.88240858,0.0004,30]
[358809229,1745455928146,-2036.153123,0.0004,35]
[358809230,1745455928184,-2000.0,0.0004,120]
[358809231,1745455928228,-2000.0,0.0004,120]
[358809232,1745455928269,-2000.0,0.0004,120]
[358809233,1745455928310,-2000.0,0.0004,120]
[358809234,1745455928498,-2000.0,0.0004,120]
[358809235,1745455928542,-2000.0,0.0004,120]
[358809236,1745455928586,-2000.0,0.0004,120]
[358809237,1745455928627,-2000.0,0.0004,120]
[358809238,1745455928674,-2000.0,0.0004,120]
[358809239,1745455928928,-2000.0,0.0004,120]
[358809240,1745455928973,-2000.0,0.0004,120]
[358809241,1745455929014,-2000.0,0.0004,120]
[358809242,1745455929052,-2000.0,0.0004,120]
[358809243,1745455929091,-2000.0,0.0004,120]
[358809244,1745455929130,-2000.0,0.0004,120]
[358809245,1745455929168,-1249.0,0.0004,120]
[358809246,1745455929205,-904.63649285,0.0004,120]
[358809247,1745455929242,-287.0,0.0004,120]
[358809248,1745455929280,-1003.97,0.0004,120]
[358809249,1745455929319,-245.62375616,0.0004,30]
[358809250,1745455929358,-408.73588661,0.0004,120]
[358809251,1745455929397,-947.52917041,0.0004,120]
[358809252,1745455929443,-286.73991752,0.0004,120]
[358809253,1745455929494,-2121.26648141,0.0004,120]
[358809254,1745455929543,-300.0,0.0004,120]
[358809255,1745455929588,-4000.0,0.0004,60]
[358809256,1745455929630,-567.10989607,0.0004,120]
[358809257,1745455929671,-2000.0,0.0004,120]
[358809258,1745455929710,-2000.0,0.0004,120]
[358809259,1745455929748,-2000.0,0.0004,120]
[358809260,1745455929786,-2000.0,0.0004,120]
[358809261,1745455929823,-1181.0,0.0004,120]
[358809262,1745455929862,-2000.0,0.0004,120]
[358809263,1745455929901,-420.82143104,0.0004,120]
[358809264,1745455929943,-205.0,0.0004031,30]
[358809265,1745455929979,-176.0358512,0.000405,120]
[358809266,1745455930016,-200.0,0.00040606,120]
[358809267,1745455930053,-200.0,0.00040725,120]
[358809268,1745455930090,-345.64752,0.000408,120]
[358809269,1745455930128,-306.5192,0.000408,120]
[358809270,1745455930165,-378.19001775,0.000409,120]
[358809271,1745455930202,-378.1900177,0.000409,120]
[358809272,1745455930239,-378.1900177,0.000409,120]
[358809273,1745455930282,-378.1900177,0.000409,120]
[358809274,1745455930324,-378.1900177,0.000409,120]
[358809275,1745455930366,-378.1900177,0.000409,120]
[358809276,1745455930410,-378.1900177,0.000409,120]
[358809277,1745455930452,-378.1900177,0.000409,120]
[358809278,1745455930498,-378.1900177,0.000409,120]
[358809279,1745455930542,-378.1900177,0.000409,120]
[358809280,1745455930584,-1475.27,0.00040967,120]
[358809281,1745455930626,-2002.02,0.00041,30]
[358809282,1745455930670,-32714.86143864,0.00041,30]
[358809283,1745455930711,-8750.44,0.00041,120]
[358809284,1745455930751,-200.0,0.00041002,120]
[358809285,1745455930790,-1475.27,0.00041067,120]
[358809286,1745455930829,-519.92,0.00041095,30]
[358809287,1745455930867,-519.92,0.00041095,30]
[358809288,1745455930906,-519.92,0.00041095,30]
[358809289,1745455930946,-519.92,0.00041095,30]
[358809290,1745455930985,-519.92,0.00041095,30]
[358809291,1745455931025,-519.92,0.00041095,30]
[358809292,1745455931063,-519.92,0.00041095,30]
[358809293,1745455931101,-519.92,0.00041095,30]
[358809294,1745455931140,-519.92,0.00041095,30]
[358809295,1745455931178,-519.92,0.00041095,30]
[358809296,1745455931214,-519.92,0.00041095,30]
[358809297,1745455931252,-519.92,0.00041095,30]
[358809298,1745455931290,-519.92,0.00041095,30]
[358809299,1745455931328,-519.92,0.00041095,30]
[358809300,1745455931366,-519.92,0.00041095,30]
[358809301,1745455931406,-519.92,0.00041095,30]
[358809302,1745455931443,-519.92,0.00041095,30]
[358809303,1745455931484,-519.92,0.00041095,30]
[358809304,1745455931526,-519.92,0.00041095,30]
[358809305,1745455931568,-519.92,0.00041095,30]
[358809306,1745455931606,-519.92,0.00041095,30]
[358809307,1745455931643,-519.92,0.00041095,30]
[358809308,1745455931678,-519.92,0.00041095,30]
[358809309,1745455931716,-519.99579057,0.00041095,30]
[358809310,1745455931755,-942.65,0.00041095,30]
[358809311,1745455931794,-942.65,0.00041095,30]
[358809312,1745455931833,-942.65,0.00041095,30]
[358809313,1745455931876,-942.65,0.00041095,30]
[358809314,1745455931918,-942.65,0.00041095,30]
[358809315,1745455931958,-942.65,0.00041095,30]
[358809316,1745455931995,-942.65,0.00041095,30]
[358809317,1745455932033,-942.65,0.00041095,30]
[358809318,1745455932068,-942.65,0.00041095,30]
[358809319,1745455932103,-942.65,0.00041095,30]
[358809320,1745455932139,-942.65,0.00041095,30]
[358809321,1745455932175,-942.65,0.00041095,30]
[358809322,1745455932213,-942.65,0.00041095,30]
[358809323,1745455932250,-942.65,0.00041095,30]
[358809324,1745455932291,-942.65,0.00041095,30]
[358809325,1745455932331,-942.65,0.00041095,30]
[358809326,1745455932371,-942.65,0.00041095,30]
[358809327,1745455932411,-942.65,0.00041095,30]
[358809328,1745455932566,-942.65,0.00041095,30]
[358809329,1745455932607,-942.65,0.00041095,30]
[358809330,1745455932645,-942.65,0.00041095,30]
[358809331,1745455932685,-942.65,0.00041095,30]
[358809332,1745455932724,-942.65,0.00041095,30]
[358809333,1745455932761,-942.76185852,0.00041095,30]
[358809334,1745455933015,-500.0,0.00041095,30]
[358809335,1745455933058,-500.0,0.00041095,30]
[358809336,1745455933098,-500.0,0.00041095,30]
[358809337,1745455933136,-500.0,0.00041095,30]
[358809338,1745455933174,-500.0,0.00041095,30]
[358809339,1745455933211,-500.0,0.00041095,30]
[358809340,1745455933249,-500.0,0.00041095,30]
[358809341,1745455933286,-500.0,0.00041095,30]
[358809342,1745455933322,-500.0,0.00041095,30]
[358809343,1745455933359,-500.0,0.00041095,30]
[358809344,1745455933396,-500.0,0.00041095,30]
[358809345,1745455933432,-500.0,0.00041095,30]
[358809346,1745455933474,-500.0,0.00041095,30]
[358809347,1745455933515,-500.0,0.00041095,30]
[358809348,1745455933556,-500.0,0.00041095,30]
[358809349,1745455933596,-500.0,0.00041095,30]
[358809350,1745455933635,-500.0,0.00041095,30]
[358809351,1745455933672,-500.0,0.00041095,30]
[358809352,1745455933711,-500.0,0.00041095,30]
[358809353,1745455933748,-575.0,0.00041095,30]
[358809354,1745455933791,-645.79,0.00041095,30]
[358809355,1745455933830,-645.79,0.00041095,30]
[358809356,1745455933867,-645.79,0.00041095,30]
[358809357,1745455933905,-645.79,0.00041095,30]
[358809358,1745455933941,-645.79,0.00041095,30]
[358809359,1745455933980,-645.79,0.00041095,30]
[358809360,1745455934017,-645.79,0.00041095,30]
[358809361,1745455934054,-645.79,0.00041095,30]
[358809362,1745455934092,-645.79,0.00041095,30]
[358809363,1745455934128,-645.79,0.00041095,30]
[358809364,1745455934165,-645.79,0.00041095,30]
[358809365,1745455934203,-645.79,0.00041095,30]
[358809366,1745455934242,-645.79,0.00041095,30]
[358809367,1745455934280,-645.79,0.00041095,30]
[358809368,1745455934318,-645.79,0.00041095,30]
[358809369,1745455934356,-645.79,0.00041095,30]
[358809370,1745455934398,-645.79,0.00041095,30]
[358809371,1745455934440,-645.79,0.00041095,30]
[358809372,1745455934483,-645.79,0.00041095,30]
[358809373,1745455934525,-645.79,0.00041095,30]
[358809374,1745455934570,-645.79,0.00041095,30]
[358809375,1745455934613,-645.79,0.00041095,30]
[358809376,1745455934657,-645.79,0.00041095,30]
[358809377,1745455934699,-645.81,0.00041095,30]
[358809378,1745455934739,-233.98102893,0.00041095,30]
[358809379,1745455934778,-500.0,0.00041095,30]
[358809380,1745455934814,-500.0,0.00041095,30]
[358809381,1745455934851,-500.0,0.00041095,30]
[358809382,1745455934888,-500.0,0.00041095,30]
[358809383,1745455934925,-500.0,0.00041095,30]
[358809384,1745455934965,-500.0,0.00041095,30]
[358809385,1745455935006,-500.0,0.00041095,30]
[358809386,1745455935048,-500.0,0.00041095,30]
[358809387,1745455935088,-500.0,0.00041095,30]
[358809388,1745455935132,-500.0,0.00041095,30]
[358809389,1745455935170,-500.0,0.00041095,30]
[358809390,1745455935208,-437.6,0.00041095,30]
[358809391,1745455935246,-936.73,0.00041095,30]
[358809392,1745455935285,-936.73,0.00041095,30]
[358809393,1745455935325,-936.73,0.00041095,30]
[358809394,1745455935363,-936.73,0.00041095,30]
[358809395,1745455935403,-936.73,0.00041095,30]
[358809396,1745455935441,-936.73,0.00041095,30]
[358809397,1745455935480,-936.73,0.00041095,30]
[358809398,1745455935520,-936.73,0.00041095,30]
[358809399,1745455935562,-936.73,0.00041095,30]
[358809400,1745455935602,-936.73,0.00041095,30]
[358809401,1745455935640,-936.73,0.00041095,30]
[358809402,1745455935677,-936.73,0.00041095,30]
[358809403,1745455935715,-936.73,0.00041095,30]
[358809404,1745455935753,-936.73,0.00041095,30]
[358809405,1745455935789,-936.73,0.00041095,30]
[358809406,1745455935826,-936.73,0.00041095,30]
[358809407,1745455935863,-936.73,0.00041095,30]
[358809408,1745455935903,-936.73,0.00041095,30]
[358809409,1745455935944,-936.73,0.00041095,30]
[358809410,1745455935986,-936.73,0.00041095,30]
[358809411,1745455936030,-936.73,0.00041095,30]
[358809412,1745455936070,-936.73,0.00041095,30]
[358809413,1745455936111,-936.73,0.00041095,30]
[358809414,1745455936152,-936.9,0.00041095,30]
[358809415,1745455936190,-500.0,0.00041095,30]
[358809416,1745455936227,-500.0,0.00041095,30]
[358809417,1745455936266,-500.0,0.00041095,30]
[358809418,1745455936304,-500.0,0.00041095,30]
[358809419,1745455936343,-500.0,0.00041095,30]
[358809420,1745455936382,-595.08,0.00041095,30]
[358809421,1745455936423,-500.0,0.00041095,30]
[358809422,1745455936465,-500.0,0.00041095,30]
[358809423,1745455936627,-500.0,0.00041095,30]
[358809424,1745455936670,-500.0,0.00041095,120]
[358809425,1745455936717,-200.0,0.00041095,120]
[358809426,1745455937106,839.95942076,0.00027,30]
[358809427,1745455937172,839.95942076,0.00032,30]
[358809477,1745456795657,190.0,0.00018,2]
[358809502,1745457032675,-708.93683534,0.00020893,2]
[358809503,1745457032685,-152.68707532,0.00020893,2]
[358809504,1745457032695,-500.0,0.00020993,2]
[358809505,1745457032705,-500.0,0.00020993,2]
[358809506,1745457032715,-473.37239126,0.00020993,2]
[358809507,1745457032725,-160.0,0.00020996,2]
[358809508,1745457032734,-154.0,0.00020997,2]
[358809509,1745457032744,-833.0,0.00020997,2]
[358809510,1745457032753,-300.0,0.00020997,2]
[358809511,1745457032764,-266.72092269,0.00020998,2]
[358809532,1745457038589,-1330.06134454,0.00020998,2]
[358809687,1745457537778,-253.07996716,0.00018318,2]
[358809688,1745457578494,-160.7133882,0.00018243,2]
[358809689,1745457604100,-178.96155116,0.00018242,2]
[358809690,1745457614603,-121.03844884,0.00018242,2]
[358809691,1745457614626,-55.43851507,0.00018242,2]
[358809692,1745457662913,-170.22687027,0.00018242,2]
[358809693,1745457681512,-458.97531246,0.00018242,2]
[358809694,1745457682070,-458.97531246,0.00018242,2]
[358809696,1745457700229,-161.72406918,0.00018142,2]
[358809697,1745457722249,-8.50280109,0.00018142,2]
[358809698,1745457722272,-153.22126809,0.00018241,2]
[358809699,1745457747591,-233.36300747,0.00018143,2]
[358809700,1745457756008,-184.19007266,0.00018143,2]
[358809701,1745457756033,-31.9230929,0.00018241,2]
[358809702,1745457783919,-162.73620081,0.0001824,2]
[358809703,1745457789628,-250.0,0.00018142,2]
[358809704,1745457791823,-417.27015239,0.00018218,2]
[358809706,1745457843436,-152.68707532,0.0001814,2]
[358809707,1745457843459,-5.68352714,0.00018218,2]
[358809708,1745457873106,-189.23881128,0.00018218,2]
[358809709,1745457891642,-242.66561534,0.00018141,2]
[358809711,1745457908193,-175.196656,0.00018141,2]
[358809713,1745457985949,-194.3501025,0.00018141,2]
[358809714,1745457985972,-30.40406572,0.00018218,2]
[358809718,1745458062469,-241.16276499,0.00018218,2]